fUSD/lending_fUSD_20240718
["ID","MTS","AMOUNT","RATE_DAILY","PERIOD"]
[332600183,1721331045054,-54809.8059026,0.00014,2]
[332600184,1721331045086,-21277.02201902,0.00014,2]
[332600185,1721331045097,-361.6920653,0.00014,2]
[332600186,1721331045108,-854.36157171,0.00014,2]
[332600187,1721331045120,-814.55264413,0.00014,2]
[332600188,1721331045132,-1164289.9833292,0.00014,2]
[332600189,1721331045155,-6400.89541296,0.00014,2]
[332600190,1721331045167,-1070.68609688,0.00014,2]
[332600191,1721331045179,-273.88727203,0.00014,2]
[332600198,1721331047572,-669.74154906,0.00014,2]
[332600199,1721331047584,-898.99522388,0.00014,2]
[332600200,1721331047596,-6248.55757461,0.00014,2]
[332600201,1721331047607,-5551.06842863,0.00014,2]
[332600202,1721331047618,-500.10126801,0.00014,2]
[332600203,1721331047629,-3941.16864385,0.00014,2]
[332600204,1721331047641,-1674.76306231,0.00014,2]
[332600205,1721331047653,-516.8461897,0.00014,2]
[332600206,1721331047680,-278269.02832929,0.00014,2]
[332600207,1721331047692,-1068.79820852,0.00014,2]
[332600208,1721331047823,-302.524,0.00014,2]
[332600210,1721331053374,-150.0,0.0001348,2]
[332600211,1721331054036,-150.0,0.0001348,2]
[332600212,1721331054612,-150.0,0.0001348,2]
[332600213,1721331055197,-150.0,0.0001348,2]
[332600214,1721331055681,-150.0,0.0001348,2]
[332600215,1721331056143,-150.0,0.0001348,2]
[332600216,1721331056621,-150.0,0.0001348,2]
[332600217,1721331057124,-150.0,0.0001348,2]
[332600218,1721331057587,-150.0,0.0001348,2]
[332600219,1721331058066,-150.0,0.0001348,2]
[332600220,1721331058507,-150.0,0.0001348,2]
[332600221,1721331058993,-150.0,0.0001348,2]
[332600222,1721331059431,-150.0,0.0001348,2]
[332600223,1721331060173,-150.0,0.0001348,2]
[332600224,1721331060735,-150.0,0.0001348,2]
[332600225,1721331061297,-150.0,0.0001348,2]
[332600226,1721331061829,-150.0,0.0001348,2]
[332600227,1721331063141,-150.0,0.0001348,2]
[332600228,1721331063604,-150.0,0.0001348,2]
[332600229,1721331064269,-150.0,0.0001348,2]
[332600230,1721331064790,-150.0,0.0001348,2]
[332600231,1721331065204,-150.0,0.0001348,2]
[332600232,1721331065836,-150.0,0.0001348,2]
[332600233,1721331066314,-150.0,0.0001348,2]
[332600234,1721331066879,-150.0,0.0001348,2]
[332600235,1721331067506,-150.0,0.0001348,2]
[332600236,1721331068792,-150.0,0.0001348,2]
[332600237,1721331069275,-150.0,0.0001348,2]
[332600238,1721331069746,-150.0,0.0001348,2]
[332600239,1721331070988,-150.0,0.0001348,2]
[332600240,1721331071417,-150.0,0.0001348,2]
[332600241,1721331071986,-215.31027139,0.0001348,2]
[332600242,1721331072620,-158.75086071,0.0001348,2]
[332600243,1721331073081,-155.0,0.0001348,2]
[332600244,1721331073533,-150.0,0.0001348,2]
[332600245,1721331074082,-150.0,0.0001348,2]
[332600246,1721331074765,-150.0,0.0001348,2]
[332600247,1721331075207,-33.21213763,0.0001348,2]
[332600260,1721331642159,166.9,0.00025008,120]
[332600261,1721331648510,166.9,0.00025008,120]
[332600262,1721331649933,166.9,0.00025008,120]
[332600263,1721331651930,166.9,0.00025008,120]
[332600264,1721331662210,166.94967198,0.00025008,120]
[332600287,1721332180627,-183.41844134,0.00015,14]
[332600288,1721332180652,-1408.82,0.00017014,14]
[332600289,1721332180677,-1000.0,0.0002,10]
[332600295,1721332231974,-162.14215494,0.00013105,2]
[332600296,1721332231983,-300.0,0.00013205,2]
[332600297,1721332231994,-9796.38560237,0.00013206,2]
[332600298,1721332232005,-6136.56339763,0.00013206,2]
[332600299,1721332232014,-475.38,0.00013306,2]
[332600300,1721332232023,-849.92748839,0.00013579,2]
[332600301,1721332232032,-1000.0,0.00013999,2]
[332600302,1721332232043,-1000.0,0.00013999,2]
[332600303,1721332232055,-1000.0,0.00013999,2]
[332600304,1721332232065,-150.0,0.00013999,2]
[332600305,1721332232074,-599.45308107,0.00013999,2]
[332600306,1721332232086,-21240.39128821,0.00014,2]
[332600307,1721332232102,-759.08000022,0.00014,2]
[332600308,1721332232113,-790.15908962,0.00014,2]
[332600309,1721332232145,-569.92,0.00014,2]
[332600310,1721332232157,-856.26166783,0.00014,2]
[332600311,1721332232189,-777.82664874,0.00014,2]
[332600312,1721332237456,-446.118849,0.00013039,2]
[332600313,1721332237466,-39634.3951527,0.00014,2]
[332600314,1721332237475,-2000.0,0.00014,2]
[332600315,1721332237485,-200.0,0.00014,2]
[332600316,1721332237494,-2000.0,0.00014,2]
[332600317,1721332237504,-200.0,0.00014,2]
[332600318,1721332237514,-593.1543,0.00014,2]
[332600319,1721332237523,-2000.0,0.0001414,2]
[332600320,1721332237533,-200.0,0.0001414,2]
[332600321,1721332237543,-2000.0,0.0001414,2]
[332600322,1721332237552,-200.0,0.0001414,2]
[332600323,1721332237561,-439.04054062,0.00014261,2]
[332600324,1721332237571,-2000.0,0.00014281,2]
[332600325,1721332237580,-200.0,0.00014281,2]
[332600326,1721332237590,-2000.0,0.00014281,2]
[332600327,1721332237599,-200.0,0.00014281,2]
[332600328,1721332237608,-2000.0,0.00014424,2]
[332600329,1721332237618,-200.0,0.00014424,2]
[332600330,1721332237627,-2000.0,0.00014424,2]
[332600331,1721332237637,-200.0,0.00014424,2]
[332600332,1721332237646,-1416.94,0.00014424,2]
[332600333,1721332237655,-999.99,0.00014451,2]
[332600334,1721332237665,-420.0,0.00014479,2]
[332600335,1721332237674,-2195.64,0.00014519,2]
[332600336,1721332237684,-499.99,0.00014519,2]
[332600337,1721332237693,-500.0,0.0001452,2]
[332600338,1721332237703,-1399.1,0.0001452,2]
[332600339,1721332237713,-416.37,0.0001452,2]
[332600340,1721332237722,-2000.0,0.00014568,2]
[332600341,1721332237731,-200.0,0.00014568,2]
[332600342,1721332237740,-200.0,0.00014568,2]
[332600343,1721332237750,-4668.71,0.00014568,2]
[332600344,1721332237759,-150.0,0.00015,2]
[332600345,1721332237769,-3659.03968495,0.00015,2]
[332600346,1721332237778,-445.67,0.0001505,2]
[332600347,1721332237787,-570.48323653,0.00015078,2]
[332600348,1721332237796,-2868.80258046,0.00015078,2]
[332600349,1721332237805,-1162.66,0.00015079,2]
[332600350,1721332237814,-406.6223,0.00015096,2]
[332600351,1721332237823,-164.27,0.00015118,2]
[332600352,1721332237832,-255.0,0.00015119,2]
[332600354,1721332237842,-202.98839586,0.00015132,2]
[332600356,1721332237851,-485.13,0.00015133,2]
[332600357,1721332237860,-158.54494384,0.0001516,2]
[332600358,1721332237869,-23900.0,0.00015161,2]
[332600359,1721332237879,-672.4,0.00015217,2]
[332600360,1721332237888,-2630.86,0.00015226,2]
[332600361,1721332237897,-155.0,0.00015267,2]
[332600362,1721332237907,-2751.0,0.00015268,2]
[332600363,1721332237916,-237.29,0.00015297,3]
[332600364,1721332237926,-155.0,0.00015298,2]
[332600365,1721332237935,-283.33682415,0.00015298,2]
[332600366,1721332237945,-155.0,0.000153,2]
[332600367,1721332237954,-500.0,0.00015342,2]
[332600368,1721332237964,-240.73383763,0.00015483,2]
[332600369,1721332237974,-250.0,0.00015484,2]
[332600370,1721332237983,-475.38,0.0001557,2]
[332600371,1721332237993,-341.8,0.00015593,2]
[332600372,1721332238003,-200.0,0.00015593,2]
[332600373,1721332238013,-250.0,0.00015631,2]
[332600374,1721332238022,-219.0,0.00015875,2]
[332600375,1721332238031,-155.0,0.00015899,2]
[332600376,1721332238041,-554.33,0.000159,2]
[332600377,1721332238054,-235.82956703,0.00015937,2]
[332600378,1721332238063,-856.25,0.00015938,2]
[332600379,1721332238072,-356.53488145,0.00015978,2]
[332600380,1721332238082,-179.45,0.0001608,2]
[332600381,1721332238093,-164.02052985,0.00016115,2]
[332600382,1721332238103,-5778.47,0.00016116,2]
[332600383,1721332238112,-71.21985592,0.00016164,2]
[332600384,1721332238137,-428.78014408,0.00016164,2]
[332600385,1721332238146,-818.18,0.00016254,2]
[332600386,1721332238156,-3671.83,0.00016264,2]
[332600387,1721332238165,-160.02612126,0.000163,2]
[332600388,1721332238174,-215.19623657,0.00016301,2]
[332600389,1721332238185,-42.33729331,0.00016301,2]
[332600390,1721332238194,-155.0,0.00016301,2]
[332600391,1721332238203,-331.92627107,0.00016301,2]
[332600392,1721332238213,-696.06030957,0.00016302,2]
[332600393,1721332238224,-308.10059489,0.00016302,2]
[332600394,1721332238233,-178.74320517,0.00016303,2]
[332600395,1721332238243,-253.1976449,0.00016303,2]
[332600396,1721332238255,-196.76096012,0.00016303,2]
[332600397,1721332238265,-155.0,0.00016303,2]
[332600398,1721332238274,-281.20056531,0.00016305,2]
[332600399,1721332238286,-218.46557785,0.00016306,2]
[332600400,1721332238295,-364.91913643,0.00016306,2]
[332600401,1721332238305,-167.0,0.00016696,2]
[332600402,1721332238314,-173.31,0.00016712,2]
[332600403,1721332238322,-856.25,0.00016735,2]
[332600404,1721332238334,-300.0,0.00016875,2]
[332600405,1721332238344,-445.67,0.00016931,2]
[332600406,1721332238353,-500.0,0.00016986,2]
[332600407,1721332238363,-200.0,0.00017,2]
[332600408,1721332238374,-10163.87,0.00017037,2]
[332600409,1721332238384,-559.648773,0.00017273,2]
[332600410,1721332238393,-559.648773,0.00017273,2]
[332600411,1721332238403,-856.25,0.00017532,2]
[332600412,1721332238412,-500.0,0.00017808,2]
[332600413,1721332238421,-475.38,0.00017834,2]
[332600414,1721332238431,-554.33,0.00017888,2]
[332600415,1721332238441,-1896.53223954,0.00017982,2]
[332600416,1721332238454,-1361.36,0.00017982,2]
[332600417,1721332238465,-2547.95425762,0.00017982,2]
[332600418,1721332238475,-371.29329548,0.00018,2]
[332600419,1721332238486,-166.91631206,0.00018225,2]
[332600420,1721332238495,-300.0,0.00018245,2]
[332600421,1721332238506,-856.25,0.00018329,2]
[332600422,1721332238516,-153.33226061,0.00018377,2]
[332600423,1721332238526,-154.92997943,0.00018526,2]
[332600424,1721332238537,-154.92997943,0.00018536,2]
[332600425,1721332238547,-154.68067757,0.00018623,2]
[332600426,1721332238557,-500.0,0.0001863,2]
[332600427,1721332238567,-166.38692766,0.00018695,2]
[332600428,1721332238576,-157.30273304,0.000187,2]
[332600429,1721332238585,-153.88854847,0.0001873,2]
[332600430,1721332238595,-445.67,0.00018813,2]
[332600431,1721332238605,-250.0,0.00019,2]
[332600432,1721332238615,-593.15431,0.00019,2]
[332600433,1721332238625,-717.44414018,0.00019091,2]
[332600434,1721332238634,-2154.48517434,0.00019115,2]
[332600435,1721332238647,-892.30155678,0.00019115,2]
[332600436,1721332238663,-1541.81277166,0.00019115,2]
[332600437,1721332238673,-856.25,0.00019126,2]
[332600438,1721332238682,-500.0,0.00019452,2]
[332600439,1721332238692,-4588.59950278,0.00019565,3]
[332600440,1721332238702,-18354.3980111,0.00019575,3]
[332600441,1721332238712,-1000.0,0.00019585,2]
[332600442,1721332238721,-1000.0,0.00019585,2]
[332600443,1721332238731,-1000.0,0.00019585,2]
[332600444,1721332238740,-1000.0,0.00019585,2]
[332600445,1721332238752,-1000.0,0.00019585,2]
[332600446,1721332238762,-1000.0,0.00019585,2]
[332600447,1721332238771,-1000.0,0.00019585,2]
[332600448,1721332238784,-1000.0,0.00019585,2]
[332600449,1721332238793,-1000.0,0.00019585,2]
[332600450,1721332238802,-1000.0,0.00019585,2]
[332600451,1721332238812,-1000.0,0.00019585,2]
[332600452,1721332238821,-1000.0,0.00019585,2]
[332600453,1721332238831,-1000.0,0.00019585,2]
[332600454,1721332238840,-1000.0,0.00019585,2]
[332600455,1721332238849,-1000.0,0.00019585,2]
[332600456,1721332238859,-1000.0,0.00019585,2]
[332600457,1721332238868,-1000.0,0.00019585,2]
[332600458,1721332238877,-1000.0,0.00019585,2]
[332600459,1721332238887,-1000.0,0.00019585,2]
[332600460,1721332238896,-1000.0,0.00019585,2]
[332600461,1721332238906,-1000.0,0.00019585,2]
[332600462,1721332238916,-1000.0,0.00019585,2]
[332600463,1721332238925,-1000.0,0.00019585,2]
[332600464,1721332238935,-1000.0,0.00019585,2]
[332600465,1721332238945,-1000.0,0.00019585,2]
[332600466,1721332238954,-1000.0,0.00019585,2]
[332600467,1721332238964,-1000.0,0.00019585,2]
[332600468,1721332238974,-1000.0,0.00019585,2]
[332600469,1721332238983,-1000.0,0.00019585,2]
[332600470,1721332238992,-1000.0,0.00019585,2]
[332600471,1721332239003,-1000.0,0.00019585,2]
[332600472,1721332239012,-1000.0,0.00019585,2]
[332600473,1721332239021,-1000.0,0.00019585,2]
[332600474,1721332239031,-1000.0,0.00019585,2]
[332600475,1721332239041,-1000.0,0.00019585,2]
[332600476,1721332239054,-977.0,0.00019585,2]
[332600477,1721332239063,-385.17990042,0.0001981,2]
[332600478,1721332239074,-554.33,0.00019875,2]
[332600479,1721332239085,-4588.59950278,0.00019976,3]
[332600480,1721332239095,-5805.84649716,0.00019986,2]
[332600481,1721332239104,-1279.44755398,0.0002,2]
[332600482,1721332239113,-153.33226061,0.00020047,2]
[332600483,1721332239125,-475.38,0.00020098,2]
[332600484,1721332239134,-179.45,0.000201,2]
[332600485,1721332239144,-13765.7985083,0.00020111,3]
[332600486,1721332239153,-27531.5970167,0.0002012,3]
[332600487,1721332239163,-784.0,0.000202,2]
[332600488,1721332239173,-500.0,0.00020273,2]
[332600489,1721332239182,-731.0,0.000203,2]
[332600490,1721332239192,-155.29917121,0.0002035,2]
[332600491,1721332239202,-4588.59950278,0.00020458,3]
[332600492,1721332239211,-445.67,0.00020694,2]
[332600493,1721332239221,-150.56184343,0.00020763,2]
[332600494,1721332239231,-3000.0,0.000208,2]
[332600495,1721332239240,-154.92997943,0.00020875,2]
[332600496,1721332239250,-300.0,0.00021,2]
[332600497,1721332239260,-155.29917121,0.00021061,2]
[332600498,1721332239270,-500.0,0.00021095,2]
[332600499,1721332239280,-4588.59950278,0.00021114,3]
[332600500,1721332239290,-155.82428154,0.00021138,2]
[332600501,1721332239300,-2630.86,0.00021316,2]
[332600502,1721332239310,-180.0,0.00021397,2]
[332600503,1721332239320,-154.04,0.00021644,2]
[332600504,1721332239331,-172.41,0.00021644,2]
[332600505,1721332239342,-154.95,0.00021644,2]
[332600506,1721332239352,-4588.59950278,0.00021699,3]
[332600507,1721332239361,-155.29917121,0.00021713,2]
[332600508,1721332239370,-554.33,0.00021863,2]
[332600509,1721332239380,-500.0,0.00021917,2]
[332600510,1721332239389,-245.5,0.00021918,2]
[332600511,1721332239399,-150.0,0.00021918,2]
[332600512,1721332239408,-166.5,0.00021918,2]
[332600513,1721332239418,-191.62,0.00021933,2]
[332600514,1721332239428,-4588.59950278,0.00021979,3]
[332600515,1721332239437,-5000.0,0.00021988,2]
[332600516,1721332239447,-5805.84649716,0.00021989,2]
[332600517,1721332239457,-1000.0,0.00022,10]
[332600518,1721332239466,-159.00411162,0.00022023,2]
[332600519,1721332239476,-154.92997943,0.00022066,2]
[332600520,1721332239485,-166.66666667,0.00022089,2]
[332600521,1721332239494,-13765.7985083,0.00022112,3]
[332600522,1721332239504,-22942.9975139,0.00022123,3]
[332600523,1721332239513,-153.88854847,0.00022123,2]
[332600524,1721332239523,-4588.59950278,0.00022133,3]
[332600525,1721332239534,-475.38,0.00022362,2]
[332600526,1721332239543,-154.92997943,0.00022465,2]
[332600527,1721332239553,-150.0,0.00022495,2]
[332600528,1721332239563,-445.67,0.00022575,2]
[332600529,1721332239572,-4588.59950278,0.00022729,3]
[332600530,1721332239582,-500.0,0.00022739,2]
[332600531,1721332239592,-4588.59950278,0.00022774,3]
[332600532,1721332239601,-155.03272074,0.00022969,2]
[332600533,1721332239611,-320.0,0.00023,10]
[332600534,1721332239620,-350.0,0.00023,2]
[332600535,1721332239630,-150.0,0.00023071,2]
[332600536,1721332239639,-153.88854847,0.00023174,2]
[332600537,1721332239649,-22942.9975139,0.00023398,3]
[332600538,1721332239659,-150.93,0.00023398,2]
[332600539,1721332239669,-50185.0,0.00023408,2]
[332600540,1721332239679,-613.58185991,0.00023433,2]
[332600541,1721332239689,-4588.59950278,0.00023434,3]
[332600542,1721332239698,-517.87346613,0.00023443,2]
[332600543,1721332239708,-617.65808783,0.00023444,2]
[332600544,1721332239718,-159.00411161,0.00023492,2]
[332600545,1721332239728,-156.35486835,0.00023559,2]
[332600546,1721332239738,-171.04080637,0.0002356,2]
[332600547,1721332239748,-300.0,0.0002356,2]
[332600548,1721332239758,-500.0,0.00023561,2]
[332600549,1721332239767,-166.66666668,0.00023587,2]
[332600550,1721332239777,-150.0,0.00023648,2]
[332600551,1721332239787,-154.68067757,0.00023834,2]
[332600552,1721332239796,-554.33,0.0002385,2]
[332600553,1721332239806,-155.29917121,0.00023868,2]
[332600554,1721332239815,-154.68067757,0.00023878,2]
[332600555,1721332239825,-300.0,0.000239,8]
[332600556,1721332239834,-4588.59950278,0.0002399,3]
[332600557,1721332239844,-5805.84649716,0.00023992,2]
[332600558,1721332239853,-2148.6271108,0.00024,3]
[332600559,1721332239863,-593.15431,0.00024,2]
[332600560,1721332239872,-1000.0,0.00024,10]
[332600561,1721332239881,-4588.59950278,0.00024042,3]
[332600562,1721332239891,-153.88854847,0.00024059,2]
[332600563,1721332239901,-4588.59950278,0.00024105,3]
[332600564,1721332239911,-27531.5970167,0.00024115,3]
[332600565,1721332239920,-12644.4161405,0.00024115,3]
[332600566,1721332239930,-150.56184345,0.00024119,2]
[332600568,1721332239939,-179.45,0.0002412,2]
[332600569,1721332239949,-17550.67514218,0.00024125,3]
[332600572,1721332239993,-965.47893929,0.00024125,3]
[332600573,1721332240241,-6772.67819953,0.00024125,3]
[332600574,1721332240250,-150.0,0.00024225,2]
[332600575,1721332240260,-155.6607701,0.00024242,2]
[332600576,1721332240270,-19655.44717849,0.00024242,2]
[332600577,1721332240280,-500.0,0.00024383,2]
[332600578,1721332240290,-475.38,0.00024626,2]
[332600579,1721332240300,-155.29917121,0.00024786,2]
[332600580,1721332240311,-150.0,0.00024802,2]
[332600581,1721332240321,-6322.20807026,0.0002489,4]
[332600582,1721332240333,-3000.0,0.000249,2]
[332600583,1721332240343,-159.00411161,0.00024962,2]
[332600584,1721332240352,-6322.20807026,0.00024988,4]
[332600585,1721332240361,-534.0322715,0.00024989,2]
[332600586,1721332240371,-227.41308538,0.00024996,2]
[332600587,1721332240380,-6322.20807026,0.00024998,4]
[332600588,1721332240389,-155.0,0.00024999,2]
[332600589,1721332240398,-400.0,0.00025,2]
[332600590,1721332240407,-1000.0,0.00025,20]
[332600591,1721332240416,-984.0,0.00025,20]
[332600592,1721332240426,-151.81624989,0.00025007,2]
[332600593,1721332240435,-7295.02396834,0.00025008,2]
[332600594,1721332240445,-694.52752118,0.00025008,2]
[332600595,1721332240455,-176.25258213,0.00025008,2]
[332600596,1721332240465,-4287.2748754,0.00025008,15]
[332600597,1721332240475,-200.0,0.00025008,2]
[332600598,1721332240484,-154.92997943,0.00025049,2]
[332600599,1721332240494,-153.88854847,0.0002506,2]
[332600600,1721332240503,-6322.20807026,0.0002509,4]
[332600601,1721332240513,-5000.0,0.000251,10]
[332600602,1721332240523,-500.0,0.00025205,2]
[332600603,1721332240532,-200.0,0.00025258,2]
[332600604,1721332240541,-200.0,0.000253,10]
[332600605,1721332240551,-150.0,0.00025379,2]
[332600606,1721332240560,-150.83666498,0.00025402,2]
[332600607,1721332240570,-6322.20807026,0.0002558,4]
[332600608,1721332240580,-649.21916455,0.0002559,4]
[332600609,1721332240591,-5672.98890571,0.0002559,4]
[332600610,1721332240602,-10196.193599,0.000256,120]
[332600611,1721332240611,-153.33226061,0.00025843,2]
[332600612,1721332240621,-322.6702118,0.00025878,2]
[332600613,1721332240630,-150.0,0.00025955,2]
[332600614,1721332240640,-5805.84649716,0.00025996,2]
[332600615,1721332240649,-1000.0,0.00026,23]
[332600616,1721332240658,-500.0,0.00026027,2]
[332600617,1721332240668,-152.03045111,0.00026037,2]
[332600618,1721332240677,-6322.20807026,0.00026083,4]
[332600619,1721332240687,-6322.20807026,0.00026107,4]
[332600620,1721332240697,-156.72020863,0.00026114,2]
[332600621,1721332240707,-12644.4161405,0.00026117,4]
[332600622,1721332240716,-25288.832281,0.00026127,4]
[332600623,1721332240726,-155.29917121,0.00026182,2]
[332600624,1721332240735,-153.33226061,0.00026228,2]
[332600625,1721332240745,-159.00411161,0.00026431,2]
[332600626,1721332240756,-150.0,0.00026532,2]
[332600627,1721332240766,-155.29917121,0.00026675,2]
[332600628,1721332240775,-155.29917121,0.00026727,2]
[332600629,1721332240785,-366.83842223,0.00026746,2]
[332600630,1721332240794,-346.826932,0.00026779,2]
[332600631,1721332240804,-1446.90950404,0.00026788,2]
[332600632,1721332240813,-256.35116785,0.0002679,2]
[332600633,1721332240823,-6322.20807026,0.00026819,4]
[332600634,1721332240832,-292.96482222,0.00026828,2]
[332600635,1721332240842,-890.13904212,0.00026828,2]
[332600636,1721332240851,-648.36921594,0.00026828,2]
[332600637,1721332240861,-263.44805181,0.00026828,2]
[332600638,1721332240871,-1630.11504423,0.00026829,28]
[332600639,1721332240880,-500.0,0.00026849,2]
[332600640,1721332240890,-475.38,0.0002689,2]
[332600641,1721332240900,-292.33,0.00026969,120]
[332600642,1721332240910,-771.66452821,0.00027,10]
[332600643,1721332240920,-450.0,0.00027,2]
[332600644,1721332240930,-1000.0,0.00027,23]
[332600645,1721332240940,-150.0,0.00027109,2]
[332600646,1721332240950,-150.00000001,0.00027123,2]
[332600647,1721332240960,-151.25604288,0.00027365,2]
[332600648,1721332240969,-484.09,0.00027397,10]
[332600649,1721332240979,-403.41,0.00027397,10]
[332600650,1721332240988,-336.18,0.00027397,10]
[332600651,1721332240997,-12644.4161405,0.00027423,4]
[332600652,1721332241007,-154.92997943,0.00027505,2]
[332600653,1721332241017,-222.99904068,0.00027671,2]
[332600654,1721332241026,-150.0,0.00027686,2]
[332600655,1721332241036,-600.0,0.000277,10]
[332600656,1721332241050,-172.41,0.00027714,2]
[332600657,1721332241060,-155.29917121,0.00027722,2]
[332600658,1721332241069,-900.0,0.000278,10]
[332600659,1721332241079,-6322.20807026,0.0002788,4]
[332600660,1721332241090,-178.29,0.0002789,3]
[332600661,1721332241099,-153.33226061,0.00027891,2]
[332600662,1721332241108,-183.78796916,0.000279,2]
[332600663,1721332241117,-1200.0,0.000279,10]
[332600664,1721332241129,-159.00411161,0.000279,2]
[332600665,1721332241138,-222.21696831,0.000279,2]
[332600666,1721332241148,-199.30824592,0.000279,2]
[332600667,1721332241157,-176.59021447,0.000279,2]
[332600668,1721332241166,-9228.16872276,0.000279,2]
[332600669,1721332241176,-151.25604289,0.00027924,2]
[332600670,1721332241185,-31611.0403513,0.0002798,4]
[332600671,1721332241196,-8085.7068819,0.0002799,4]
[332600672,1721332241209,-3166.04903559,0.0002799,4]
[332600673,1721332241222,-3997.42766346,0.0002799,4]
[332600674,1721332241235,-29006.27291085,0.0002799,4]
[332600675,1721332241245,-150.93,0.0002799,2]
[332600676,1721332241255,-150.93,0.0002799,2]
[332600677,1721332241265,-150.93,0.0002799,2]
[332600678,1721332241273,-150.93,0.0002799,2]
[332600679,1721332241283,-150.93,0.0002799,2]
[332600680,1721332241292,-153.33226061,0.00027996,2]
[332600681,1721332241301,-5805.84649716,0.00027999,2]
[332600682,1721332241312,-2562.20206707,0.00028,2]
[332600683,1721332241321,-621.62545807,0.00028,2]
[332600684,1721332241331,-20635.39018469,0.00028,2]
[332600685,1721332241344,-20846.88647575,0.00028,2]
[332600686,1721332241360,-1254.9956438,0.00028,2]
[332600687,1721332241371,-49668.16452362,0.00028,2]
[332600688,1721332241382,-684.00359242,0.00028,2]
[332600689,1721332241394,-3692.34000001,0.00028,2]
[332600690,1721332241732,-622.21983407,0.00028,2]
[332600691,1721332241758,-703.20536157,0.00028,2]
[332600692,1721332241770,-871.38553932,0.00028,2]
[332600693,1721332241782,-2941.48850884,0.00028,2]
[332600694,1721332241813,-1042.82955653,0.00028,2]
[332600717,1721332242630,-250.0,0.00015899,2]
[332600718,1721332242640,-150.4380872,0.00016253,2]
[332600719,1721332242652,-37.26239898,0.00016253,2]
[332600720,1721332242662,-356.17840945,0.00026779,2]
[332600721,1721332242671,-49.62360187,0.00028,2]
[332600722,1721332242682,-501.7001713,0.00028,2]
[332600723,1721332242701,-2120.95346644,0.00028,2]
[332600724,1721332242713,-4359.07430807,0.00028,2]
[332600725,1721332242724,-6540.44346774,0.00028,2]
[332600726,1721332242736,-281.186742,0.00028,2]
[332600727,1721332242747,-752.06647049,0.00028,2]
[332600728,1721332242760,-385.66261705,0.00028,2]
[332600729,1721332242773,-3762.92114843,0.00028,2]
[332600730,1721332243612,-8864.50863,0.00028,2]
[332600731,1721332243727,-55921.03813831,0.00028,2]
[332600732,1721332243747,-703.90320097,0.00028,2]
[332600734,1721332243995,-752.71832399,0.00028,2]
[332600735,1721332244029,-2366.84226352,0.00028,2]
[332600736,1721332244055,-321.99150957,0.00022639,2]
[332600737,1721332244065,-30048.40173791,0.00028,2]
[332600738,1721332244076,-1040.80179994,0.00028,2]
[332600739,1721332244089,-3583.15614854,0.00028,2]
[332600740,1721332244100,-230710.3821276,0.00028,2]
[332600741,1721332244123,-656.14,0.00028,2]
[332600742,1721332244143,-43396.33147046,0.00028,2]
[332600749,1721332245907,-155.3020776,0.00015297,2]
[332600750,1721332245917,-8700.06068854,0.00028,21]
[332600751,1721332245929,-504.801576,0.00028,21]
[332600752,1721332245941,-83992.82388934,0.00028,21]
[332600753,1721332245954,-321180.00000002,0.00028,21]
[332600754,1721332245981,-635.80908,0.00028,21]
[332600755,1721332247123,-155.16181935,0.00026788,2]
[332600756,1721332247133,-495.63839019,0.00028,21]
[332600757,1721332247143,-316.682154,0.00028,21]
[332600758,1721332247166,-190351.94115532,0.00028,21]
[332600759,1721332247196,-32707.76172035,0.00028,21]
[332600760,1721332247299,-36914.27586714,0.00028,21]
[332600782,1721332936356,2038.2504887,0.00024,60]
[332600802,1721333431689,-162.14215494,0.0001479,2]